bitfinex/quotes_BTCUSD_20250204
["timestamp","ask_amount","ask_price","bid_price","bid_amount"]
[1738690685587,0.151109,99266.0,99245.0,0.03126107]
[1738690685786,0.151113,99264.0,99246.0,0.18126107]
[1738690685985,0.151113,99264.0,99228.0,0.040307]
[1738690685986,0.0451,99275.0,99247.0,0.03126107]
[1738690686207,0.0451,99275.0,99245.0,0.03126107]
[1738690686208,0.151125,99256.0,99245.0,0.03126107]
[1738690686419,0.12538506,99274.0,99245.0,0.03126107]
[1738690686617,0.151131,99252.0,99223.0,0.09109507]
[1738690686880,0.0825,99248.0,99244.0,0.000693]
[1738690687038,0.151141,99245.0,99244.0,0.000693]
[1738690687264,0.0825,99248.0,99244.0,0.000693]
[1738690687450,1.5,99245.0,99244.0,0.000693]
[1738690688107,1.5,99245.0,99244.0,0.01945122]
[1738690688318,1.651141,99245.0,99244.0,0.01945122]
[1738690688912,1.5,99245.0,99244.0,0.01945122]
[1738690689112,1.651141,99245.0,99244.0,0.01945122]
[1738690692773,1.75352606,99245.0,99244.0,0.01945122]
[1738690692993,1.77652606,99245.0,99244.0,0.01945122]
[1738690693372,1.85452606,99245.0,99244.0,0.01945122]
[1738690693591,1.91022606,99245.0,99244.0,0.000693]
[1738690694011,0.230274,99223.0,99222.0,2.4]
[1738690694167,0.38771906,99223.0,99222.0,2.40014052]
[1738690694634,1.88771906,99223.0,99222.0,2.40014052]
[1738690695746,1.88871906,99223.0,99222.0,2.40014052]
[1738690699468,1.88871906,99223.0,99222.0,2.4003648]
[1738690700040,1.91171906,99223.0,99222.0,2.4003648]
[1738690700194,2.06171906,99223.0,99222.0,2.4003648]
[1738690700393,2.08249189,99223.0,99222.0,2.4003648]
[1738690700718,2.18249189,99223.0,99222.0,2.4003648]
[1738690701278,2.52389189,99223.0,99222.0,2.2898938]
[1738690701485,2.61338661,99223.0,99222.0,2.2898938]
[1738690701685,2.62338661,99223.0,99222.0,2.22518667]
[1738690701910,2.63689028,99223.0,99222.0,2.06083069]
[1738690702132,2.63789028,99223.0,99222.0,2.03142969]
[1738690702330,2.63789028,99223.0,99222.0,1.70141541]
[1738690702557,2.64689028,99223.0,99222.0,1.67900343]
[1738690702756,0.151214,99197.0,99185.0,0.0802363]
[1738690702926,0.25359906,99197.0,99185.0,0.0802363]
[1738690703125,0.151231,99186.0,99185.0,0.0802363]
[1738690703325,0.151231,99186.0,99185.0,0.08034499]
[1738690703524,0.151231,99186.0,99185.0,0.00010869]
[1738690703733,1.651231,99186.0,99185.0,0.00010869]
[1738690705325,0.10918877,99195.0,99185.0,0.00010869]
[1738690705470,0.10238506,99194.0,99185.0,0.00010869]
[1738690705871,0.151226,99189.0,99185.0,0.00010869]
[1738690706076,0.001,99186.0,99185.0,0.00010869]
[1738690707278,0.151229,99187.0,99185.0,0.00010869]
[1738690707433,0.201635,99189.0,99185.0,0.00010869]
[1738690707637,0.15123,99187.0,99185.0,0.00010869]
[1738690707839,0.151231,99186.0,99185.0,0.00010869]
[1738690708450,0.001,99186.0,99185.0,0.00010869]
[1738690709101,0.152231,99186.0,99185.0,0.00010869]
[1738690709231,0.001,99186.0,99185.0,0.00010869]
[1738690711258,0.201597,99208.0,99185.0,0.00010869]
[1738690711456,0.151203,99204.0,99185.0,0.00010869]
[1738690711612,1.5,99201.0,99185.0,0.00010869]
[1738690712906,1.651208,99201.0,99185.0,0.00010869]
[1738690713154,1.5,99201.0,99185.0,0.00010869]
[1738690714808,0.15121,99200.0,99185.0,0.00010869]
[1738690714960,0.151231,99186.0,99185.0,0.00010869]
[1738690715346,0.25361606,99186.0,99185.0,0.00010869]
[1738690715547,1.75361606,99186.0,99185.0,0.00033297]
[1738690716953,1.77661606,99186.0,99185.0,0.00033297]
[1738690717205,1.77761606,99186.0,99185.0,0.00033297]
[1738690717380,2.45071078,99186.0,99185.0,0.00033297]
[1738690717583,2.46126708,99186.0,99185.0,0.00033297]
[1738690717988,2.46026708,99186.0,99185.0,0.00033297]
[1738690718395,2.46726708,99186.0,99185.0,0.00033297]
[1738690718598,2.46926708,99186.0,99185.0,0.00033297]
[1738690718935,2.36609236,99186.0,99185.0,0.00033297]
[1738690720956,2.38627659,99186.0,99185.0,0.00033297]
[1738690723777,2.28489236,99186.0,99185.0,0.00033297]
[1738690727946,2.13489236,99186.0,99185.0,0.00033297]
[1738690728796,2.10257236,99186.0,99185.0,0.00033297]
[1738690729001,2.11189236,99186.0,99185.0,0.00033297]
[1738690730126,2.12323507,99186.0,99185.0,0.00033297]
[1738690732450,2.11189236,99186.0,99185.0,0.00033297]
[1738690734624,1.78249236,99186.0,99185.0,0.00033297]
[1738690737932,1.80549236,99186.0,99185.0,0.00033297]
[1738690744990,0.151287,99149.0,99148.0,0.0802363]
[1738690745188,0.151287,99150.0,99148.0,0.08070517]
[1738690745395,0.023,99167.0,99148.0,0.00046887]
[1738690745600,1.60238506,99166.0,99148.0,0.00046887]
[1738690745841,0.15127,99160.0,99148.0,0.00046887]
[1738690746067,0.01058625,99167.0,99148.0,0.00046887]
[1738690746297,0.3294,99176.0,99148.0,0.00046887]
[1738690746496,0.00932,99172.0,99148.0,0.00146887]
[1738690746714,0.15126,99167.0,99148.0,0.00146887]
[1738690746907,0.201673,99170.0,99148.0,0.00046887]
[1738690747063,0.201673,99170.0,99148.0,0.00146887]
[1738690747274,0.151258,99168.0,99148.0,0.00246887]
[1738690747482,0.15126,99167.0,99148.0,0.00246887]
[1738690747680,0.00932,99172.0,99148.0,0.00046887]
[1738690747910,0.00932,99172.0,99148.0,0.00246887]
[1738690748091,1.5,99166.0,99148.0,0.00246887]
[1738690748514,1.5,99166.0,99148.0,0.00146887]
[1738690749086,1.5,99166.0,99148.0,0.00046887]
[1738690749291,1.57506987,99166.0,99148.0,0.00046887]
[1738690749535,1.57506987,99166.0,99148.0,0.00146887]
[1738690749734,1.57506987,99166.0,99148.0,0.00046887]
[1738690750302,1.5,99166.0,99148.0,0.00046887]
[1738690750467,1.5,99166.0,99148.0,0.00246887]
[1738690750981,1.5,99166.0,99148.0,0.00046887]
[1738690751384,1.5,99166.0,99148.0,0.00146887]
[1738690751744,0.10238506,99165.0,99148.0,0.00169315]
[1738690752505,1.5,99156.0,99148.0,0.00269315]
[1738690752721,1.5,99156.0,99148.0,0.00169315]
[1738690753069,1.5,99156.0,99148.0,0.00269315]
[1738690753264,1.5,99156.0,99148.0,0.00169315]
[1738690753675,0.151279,99154.0,99148.0,0.00169315]
[1738690753871,1.701703,99156.0,99148.0,0.00169315]
[1738690754051,0.151279,99155.0,99148.0,0.00169315]
[1738690754270,0.151287,99150.0,99148.0,0.00169315]
[1738690754476,0.151283,99152.0,99148.0,0.00269315]
[1738690754680,0.151281,99153.0,99148.0,0.00269315]
[1738690754861,0.151278,99155.0,99148.0,0.00269315]
[1738690755059,1.651276,99156.0,99148.0,0.00269315]
[1738690755501,1.651276,99156.0,99148.0,0.00169315]
[1738690755876,1.651276,99156.0,99148.0,0.00069315]
[1738690756075,0.151279,99155.0,99148.0,0.00069315]
[1738690756273,1.651276,99156.0,99148.0,0.00169315]
[1738690756593,1.651276,99156.0,99148.0,0.00069315]
[1738690756809,1.651276,99156.0,99148.0,0.00169315]
[1738690756996,1.5,99156.0,99148.0,0.00269315]
[1738690757211,0.151282,99153.0,99148.0,0.00269315]
[1738690757389,0.201704,99155.0,99148.0,0.00269315]
[1738690757726,0.201704,99155.0,99148.0,0.00169315]
[1738690757929,0.201704,99155.0,99148.0,0.00269315]
[1738690758370,0.151278,99155.0,99148.0,0.00269315]
[1738690758563,0.15128,99154.0,99148.0,0.00169315]
[1738690758767,0.151282,99153.0,99148.0,0.00269315]
[1738690759466,0.151279,99154.0,99148.0,0.00269315]
[1738690759611,0.151279,99154.0,99148.0,0.00169315]
[1738690759814,0.151279,99154.0,99148.0,0.00269315]
[1738690760011,0.151281,99154.0,99148.0,0.00069315]
[1738690760250,0.151279,99154.0,99148.0,0.00069315]
[1738690760455,0.201704,99155.0,99148.0,0.00269315]
[1738690760659,0.151279,99155.0,99148.0,0.00269315]
[1738690760856,1.5,99156.0,99148.0,0.00169315]
[1738690761054,0.15128,99154.0,99148.0,0.00169315]
[1738690761459,0.15128,99154.0,99148.0,0.00069315]
[1738690761855,0.151285,99151.0,99148.0,0.00069315]
[1738690762060,0.10249472,99150.0,99148.0,0.00069315]
[1738690762421,0.20171,99152.0,99148.0,0.00169315]
[1738690762783,0.151286,99150.0,99148.0,0.00169315]
[1738690763008,0.151287,99149.0,99148.0,0.00169315]
[1738690763184,0.151287,99149.0,99148.0,0.00269315]
[1738690763382,0.151287,99149.0,99148.0,0.00169315]
[1738690763811,0.151287,99149.0,99148.0,0.00269315]
[1738690764075,0.35616678,99149.0,99148.0,0.00269315]
[1738690764194,0.35616678,99149.0,99148.0,0.00069315]
[1738690764400,0.37916678,99149.0,99148.0,0.00169315]
[1738690764806,2.20856678,99149.0,99148.0,0.00169315]
[1738690765003,2.25756678,99149.0,99148.0,0.00269315]
[1738690765316,2.40756678,99149.0,99148.0,0.00269315]
[1738690766257,2.40756678,99149.0,99148.0,0.00169315]
[1738690766415,2.40756678,99149.0,99148.0,0.00069315]
[1738690766626,2.40756678,99149.0,99148.0,0.00169315]
[1738690767079,2.41256678,99149.0,99148.0,0.00169315]
[1738690767411,2.43301103,99149.0,99148.0,0.00069315]
[1738690767619,2.43501103,99149.0,99148.0,0.00069315]
[1738690769536,0.01,99145.0,99144.0,0.00022407]
[1738690769880,0.51626236,99145.0,99144.0,0.00022407]
[1738690770084,0.53926236,99145.0,99144.0,0.00022407]
[1738690770368,0.86866236,99145.0,99144.0,0.00022407]
[1738690770496,2.36866236,99145.0,99144.0,0.00022407]
[1738690770701,2.37366236,99145.0,99144.0,0.00022407]
[1738690771102,2.36866236,99145.0,99144.0,0.00022407]
[1738690771346,0.174327,99123.0,99121.0,0.00022428]
[1738690771522,0.61543206,99123.0,99121.0,0.00022428]
[1738690771723,0.69623206,99123.0,99121.0,0.00022428]
[1738690772228,2.19623206,99123.0,99121.0,0.00022428]
[1738690773668,2.19723206,99123.0,99121.0,0.00022428]
[1738690773821,2.50802678,99123.0,99121.0,0.00022428]
[1738690774003,2.51302678,99123.0,99121.0,0.00022428]
[1738690774204,2.51302678,99123.0,99122.0,2.8e-07]
[1738690774928,2.50802678,99123.0,99122.0,2.8e-07]
[1738690775130,2.52725197,99123.0,99122.0,2.8e-07]
[1738690775764,2.52525197,99123.0,99122.0,2.8e-07]
[1738690776139,2.41275725,99123.0,99122.0,2.8e-07]
[1738690776336,0.324328,99122.0,99121.0,1e-08]
[1738690776539,0.43671306,99122.0,99121.0,1e-08]
[1738690777028,0.31134,99114.0,99101.0,0.0001068]
[1738690777201,1.93672506,99114.0,99101.0,0.0001068]
[1738690777875,2.25612506,99114.0,99101.0,0.0001068]
[1738690778048,2.09244506,99114.0,99101.0,0.0001068]
[1738690778268,2.09244506,99114.0,99113.0,0.00024738]
[1738690778475,2.12044506,99114.0,99113.0,0.00024738]
[1738690779036,2.12244506,99114.0,99113.0,0.00024738]
[1738690780828,0.62244506,99114.0,99113.0,0.00024738]
[1738690781527,2.12244506,99114.0,99113.0,0.00024738]
[1738690782215,1.79304506,99114.0,99113.0,0.00024738]
[1738690782826,1.79300506,99114.0,99113.0,0.00024738]
[1738690785660,1.81174218,99114.0,99113.0,0.00024738]
[1738690785868,1.9142369,99114.0,99113.0,0.00024738]
[1738690786726,1.81174218,99114.0,99113.0,0.00024738]
[1738690788063,2.14114218,99114.0,99113.0,0.00024738]
[1738690788677,2.12240506,99114.0,99113.0,0.00024738]
[1738690793787,2.11312506,99114.0,99113.0,0.00024738]
[1738690793985,2.12240506,99114.0,99113.0,0.00024738]
[1738690795532,2.22489978,99114.0,99113.0,0.00024738]
[1738690796048,2.12240506,99114.0,99113.0,0.00024738]
[1738690800721,2.27240506,99114.0,99113.0,0.00024738]
[1738690800923,2.40600506,99114.0,99113.0,0.00024738]
[1738690801861,2.40400506,99114.0,99113.0,0.00024738]
[1738690802060,2.40800506,99114.0,99113.0,0.00024738]
[1738690802391,2.50549978,99114.0,99113.0,0.00024738]
[1738690802578,2.51449978,99114.0,99113.0,0.00024738]
[1738690803617,2.09612506,99114.0,99113.0,0.00024738]
[1738690803766,0.28557804,99114.0,99113.0,0.00024738]
[1738690803966,0.18319298,99114.0,99113.0,0.00024738]
[1738690804721,0.02785298,99114.0,99113.0,0.00024738]
[1738690805097,0.02885298,99114.0,99113.0,0.00024738]
[1738690805436,1.51885298,99114.0,99113.0,0.00024738]
[1738690805840,1.52385298,99114.0,99113.0,0.00024738]
[1738690806096,1.501,99114.0,99113.0,0.00024738]
[1738690806445,1.504,99114.0,99113.0,0.07644738]
[1738690806658,1.65534,99114.0,99113.0,0.07644738]
[1738690807582,1.504,99114.0,99113.0,0.07644738]
[1738690807792,1.505,99114.0,99113.0,0.07644738]
[1738690807990,0.005,99114.0,99113.0,0.22778938]
[1738690808292,0.005,99114.0,99113.0,0.27288938]
[1738690808451,0.005,99114.0,99113.0,0.37527444]
[1738690809081,0.0001068,99121.0,99113.0,0.37527444]
[1738690809285,0.0001068,99121.0,99120.0,0.382931]
[1738690809488,0.0001068,99121.0,99120.0,0.53471606]
[1738690810466,0.0001068,99121.0,99120.0,0.432331]
[1738690810665,0.0001068,99121.0,99120.0,0.131]
[1738690811317,0.0001068,99121.0,99120.0,0.282331]
[1738690811516,0.0001068,99121.0,99120.0,0.432331]
[1738690814811,0.0001068,99121.0,99120.0,0.281]
[1738690814943,0.0001068,99121.0,99113.0,0.00024738]
[1738690815741,0.0001068,99121.0,99114.0,0.15]
[1738690815939,0.0001068,99121.0,99113.0,0.00024738]
[1738690816138,0.0001068,99121.0,99119.0,0.151332]
[1738690816343,0.0001068,99121.0,99115.0,0.151338]
[1738690816545,0.0001068,99121.0,99116.0,0.15]
[1738690816771,0.0001068,99121.0,99116.0,0.301337]
[1738690816973,0.0001068,99121.0,99116.0,0.15]
[1738690818160,0.0001068,99121.0,99115.0,0.15]
[1738690818367,0.0001068,99121.0,99113.0,0.00024738]
[1738690819478,0.151333,99120.0,99113.0,0.00024738]
[1738690819635,0.0001068,99121.0,99113.0,0.00024738]
[1738690819817,0.02018788,99120.0,99113.0,0.00024738]
[1738690820093,0.15134,99114.0,99113.0,0.00024738]
[1738690821035,0.10238506,99119.0,99113.0,0.00024738]
[1738690821376,0.151335,99118.0,99113.0,0.00024738]
[1738690821550,1.5,99114.0,99113.0,0.00024738]
[1738690821918,0.0001068,99121.0,99113.0,0.00024738]
[1738690824639,0.10238506,99120.0,99113.0,0.00024738]
[1738690824791,0.15134,99114.0,99113.0,0.00024738]
[1738690824956,0.25372506,99114.0,99113.0,0.00024738]
[1738690825159,0.27672506,99114.0,99113.0,0.00024738]
[1738690825382,1.77672506,99114.0,99113.0,0.00024738]
[1738690825609,1.85487117,99114.0,99113.0,0.00024738]
[1738690826331,1.77672506,99114.0,99113.0,0.00024738]
[1738690826562,1.79553709,99114.0,99113.0,0.00024738]
[1738690826688,1.87743709,99114.0,99113.0,0.00024738]
[1738690826891,1.88805036,99114.0,99113.0,0.00024738]
[1738690827088,1.80615036,99114.0,99113.0,0.00024738]
[1738690827800,1.93526305,99114.0,99113.0,0.00024738]
[1738690828250,1.94426305,99114.0,99113.0,0.00024738]
[1738690829333,1.9141652,99114.0,99113.0,0.00024738]
[1738690830405,1.81515036,99114.0,99113.0,0.00024738]
[1738690830928,1.94615036,99114.0,99113.0,0.00024738]
[1738690831203,2.10615036,99114.0,99113.0,0.00024738]
[1738690831607,2.45307572,99114.0,99113.0,3.8e-07]
[1738690831831,2.55557044,99114.0,99113.0,3.8e-07]
[1738690831958,2.54857044,99114.0,99113.0,3.8e-07]
[1738690832170,0.437559,99102.0,99101.0,0.0001068]
[1738690832419,0.89234406,99102.0,99101.0,0.00024749]
[1738690833120,2.39234406,99102.0,99101.0,0.00024749]
[1738690833321,2.39986942,99102.0,99101.0,0.00024749]
[1738690833923,2.44879093,99102.0,99101.0,0.00024749]
[1738690834585,2.43879093,99102.0,99101.0,0.00024749]
[1738690835045,2.39039093,99102.0,99101.0,0.00024749]
[1738690835245,2.39939093,99102.0,99101.0,0.00024749]
[1738690835448,2.39039093,99102.0,99101.0,0.00024749]
[1738690835651,2.40039093,99102.0,99101.0,0.00024749]
[1738690835844,2.51588565,99102.0,99101.0,0.00024749]
[1738690836051,2.60688565,99102.0,99101.0,0.00024749]
[1738690836455,2.62449627,99102.0,99101.0,0.00024749]
[1738690836819,2.61549627,99102.0,99101.0,0.00024749]
[1738690836937,2.62449627,99102.0,99101.0,0.00024749]
[1738690837814,2.62774444,99102.0,99101.0,0.00024749]
[1738690838374,2.62474444,99102.0,99101.0,0.00024749]
[1738690838602,2.62874444,99102.0,99101.0,0.00024749]
[1738690839574,2.63874444,99102.0,99101.0,0.00024749]
[1738690839985,2.63880568,99102.0,99101.0,0.00024749]
[1738690840339,0.151374,99092.0,99086.0,0.00022407]
[1738690840516,0.28599906,99092.0,99091.0,0.00022519]
[1738690841138,2.00602561,99092.0,99091.0,0.00022519]
[1738690841318,2.24562561,99092.0,99091.0,0.00022519]
[1738690841658,2.47502561,99092.0,99091.0,0.00022519]
[1738690841814,2.46502561,99092.0,99091.0,0.00022519]
[1738690841995,2.46411779,99092.0,99091.0,0.00022519]
[1738690842201,2.33451779,99092.0,99091.0,0.00022519]
[1738690842519,2.34651779,99092.0,99091.0,0.00022519]
[1738690842906,2.33451779,99092.0,99091.0,0.00022519]
[1738690843108,2.34751779,99092.0,99091.0,0.00022519]
[1738690843382,2.45001251,99092.0,99091.0,0.00022519]
[1738690843554,2.44248715,99092.0,99091.0,0.00022519]
[1738690844307,2.43848715,99092.0,99091.0,0.00022519]
[1738690844509,2.42948715,99092.0,99091.0,0.00022519]
[1738690844728,2.44148715,99092.0,99091.0,0.00022519]
[1738690845071,2.32999243,99092.0,99091.0,0.00022519]
[1738690845332,2.31775243,99092.0,99091.0,0.00022519]
[1738690845538,2.16699243,99092.0,99091.0,0.00022519]
[1738690845737,2.15799243,99092.0,99091.0,0.00022519]
[1738690845965,2.16824345,99092.0,99091.0,0.00022519]
[1738690846092,2.16063283,99092.0,99091.0,0.00022519]
[1738690846484,2.22633932,99092.0,99091.0,0.00022519]
[1738690846932,2.21709932,99092.0,99091.0,0.00022519]
[1738690847116,2.22633932,99092.0,99091.0,0.00022519]
[1738690847737,2.23233932,99092.0,99091.0,0.00022519]
[1738690847943,2.15363283,99092.0,99091.0,0.00022519]
[1738690848314,2.15763283,99092.0,99091.0,0.00022519]
[1738690848521,0.65763283,99092.0,99091.0,0.00022519]
[1738690848690,0.65963283,99092.0,99091.0,0.00022519]
[1738690848890,2.15963283,99092.0,99091.0,0.00022519]
[1738690850973,2.15163283,99092.0,99091.0,0.00022519]
[1738690851279,2.15963283,99092.0,99091.0,0.00022519]
[1738690851776,1.88638275,99092.0,99091.0,0.00022519]
[1738690851979,1.55698275,99092.0,99091.0,0.27460119]
[1738690852323,0.05698275,99092.0,99091.0,0.27460119]
[1738690852528,0.05698275,99092.0,99091.0,0.12322519]
[1738690852729,0.05698275,99092.0,99091.0,0.27460119]
[1738690852976,0.05498275,99092.0,99091.0,0.12322519]
[1738690853220,0.00606124,99092.0,99091.0,0.12322519]
[1738690853960,6.124e-05,99092.0,99091.0,0.12322519]
[1738690854151,0.00406124,99092.0,99091.0,0.12322519]
[1738690854360,0.00506124,99092.0,99091.0,0.27460119]
[1738690856206,0.00506124,99092.0,99091.0,0.12322519]
[1738690856997,0.00506124,99092.0,99091.0,0.27460119]
[1738690858727,0.00406124,99092.0,99091.0,0.27460119]
[1738690858932,6.124e-05,99092.0,99091.0,0.27460119]
[1738690864024,6.124e-05,99092.0,99091.0,0.37698625]
[1738690864658,6.124e-05,99092.0,99091.0,0.52698625]
[1738690864864,6.124e-05,99092.0,99091.0,0.55830972]
[1738690866964,6.124e-05,99092.0,99091.0,0.55930972]
[1738690867213,6.124e-05,99092.0,99091.0,0.55830972]
[1738690867421,6.124e-05,99092.0,99091.0,0.56851367]
[1738690867721,6.124e-05,99092.0,99091.0,0.56951367]
[1738690867920,6.124e-05,99092.0,99091.0,0.56851367]
[1738690868343,6.124e-05,99092.0,99091.0,0.57051367]
[1738690869611,6.124e-05,99092.0,99091.0,0.56951367]
[1738690870221,6.124e-05,99092.0,99091.0,0.58921768]
[1738690870770,6.124e-05,99092.0,99091.0,0.58821768]
[1738690870938,6.124e-05,99092.0,99091.0,0.58921768]
[1738690871881,6.124e-05,99092.0,99091.0,0.58821768]
[1738690872084,6.124e-05,99092.0,99091.0,0.58921768]
[1738690873045,6.124e-05,99092.0,99091.0,0.27560119]
[1738690873229,6.124e-05,99092.0,99091.0,0.15260119]
[1738690873626,6.124e-05,99092.0,99091.0,0.00122519]
[1738690874022,6.124e-05,99092.0,99091.0,0.00022519]
[1738690874227,6.124e-05,99092.0,99091.0,0.15160119]
[1738690874820,6.124e-05,99092.0,99091.0,0.15260119]
[1738690875041,6.124e-05,99092.0,99091.0,0.15160119]
[1738690875608,6.124e-05,99092.0,99091.0,0.15260119]
[1738690875779,6.124e-05,99092.0,99091.0,0.15160119]
[1738690877185,6.124e-05,99092.0,99091.0,0.15260119]
[1738690877398,6.124e-05,99092.0,99091.0,0.15160119]
[1738690877778,6.124e-05,99092.0,99091.0,0.15260119]
[1738690880379,6.124e-05,99092.0,99091.0,0.15160119]
[1738690880552,6.124e-05,99092.0,99091.0,0.15260119]
[1738690880767,6.124e-05,99092.0,99091.0,0.15160119]
[1738690881128,6.124e-05,99092.0,99091.0,0.15260119]
[1738690882096,6.124e-05,99092.0,99091.0,0.00122519]
[1738690882527,0.15143524,99092.0,99091.0,0.00122519]
[1738690882727,0.3093399,99092.0,99091.0,0.00122519]
[1738690883200,0.48083524,99092.0,99091.0,0.00122519]
[1738690883405,0.48083524,99092.0,99091.0,0.00022519]
[1738690883406,2.1646203,99092.0,99091.0,0.00022519]
[1738690884137,1.98083524,99092.0,99091.0,0.00022519]
[1738690884258,1.82946124,99092.0,99091.0,0.00022519]
[1738690884456,0.48183524,99092.0,99091.0,0.00022519]
[1738690885068,0.33046124,99092.0,99091.0,0.00022519]
[1738690885369,0.32946124,99092.0,99091.0,0.00022519]
[1738690886880,0.33146124,99092.0,99091.0,0.00022519]
[1738690887085,0.32946124,99092.0,99091.0,0.00022519]
[1738690887386,0.33046124,99092.0,99091.0,0.00022519]
[1738690887586,0.32946124,99092.0,99091.0,0.00022519]
[1738690888042,0.33046124,99092.0,99091.0,0.00022519]
[1738690888221,0.32946124,99092.0,99091.0,0.00022519]
[1738690888627,0.33046124,99092.0,99091.0,0.00022519]
[1738690889154,0.00106124,99092.0,99091.0,0.00022519]
[1738690889611,0.15243524,99092.0,99091.0,0.00022519]
[1738690889819,0.23073524,99092.0,99091.0,0.00022519]
[1738690890026,0.3331203,99092.0,99091.0,0.00022519]
[1738690890198,1.8814203,99092.0,99091.0,0.00022519]
[1738690890397,1.7548203,99092.0,99091.0,0.00022519]
[1738690891172,1.7538203,99092.0,99091.0,0.00022519]
[1738690891584,1.7548203,99092.0,99091.0,0.00022519]
[1738690891994,1.7538203,99092.0,99091.0,0.00022519]
[1738690892198,1.7768203,99092.0,99091.0,0.00022519]
[1738690892403,1.9059203,99092.0,99091.0,0.00022519]
[1738690893220,1.91344993,99092.0,99091.0,0.00022519]
[1738690893427,1.91544993,99092.0,99091.0,0.00022519]
[1738690893845,1.93226139,99092.0,99091.0,0.00022519]
[1738690894061,2.04375611,99092.0,99091.0,0.00022519]
[1738690895064,1.94426139,99092.0,99091.0,0.00022519]
[1738690895418,1.94126139,99092.0,99091.0,0.00022519]
[1738690895615,1.91826139,99092.0,99091.0,0.00022519]
[1738690895822,1.80136139,99092.0,99091.0,0.00022519]
[1738690896243,0.27954993,99092.0,99091.0,0.00022519]
[1738690896446,0.27354993,99092.0,99091.0,0.00022519]
[1738690896740,1.77354993,99092.0,99091.0,0.00022519]
[1738690896962,1.78254993,99092.0,99091.0,0.00022519]
[1738690897205,1.77354993,99092.0,99091.0,0.00022519]
[1738690897379,1.76434993,99092.0,99091.0,0.00022519]
[1738690897582,1.51206124,99092.0,99091.0,0.00022519]
[1738690897761,1.50006124,99092.0,99091.0,0.00022519]
[1738690897966,1.50006124,99092.0,99091.0,0.15160119]
[1738690898189,1.50906124,99092.0,99091.0,0.15160119]
[1738690898413,1.50306124,99092.0,99091.0,0.15160119]
[1738690898678,1.50006124,99092.0,99091.0,0.15160119]
[1738690899690,1.50606124,99092.0,99091.0,0.15160119]
[1738690900079,1.50006124,99092.0,99091.0,0.00022519]
[1738690900286,1.65143524,99092.0,99091.0,0.00122519]
[1738690901094,1.65143524,99092.0,99091.0,0.00022519]
[1738690901293,1.50006124,99092.0,99091.0,0.00022519]
[1738690901503,1.50106124,99092.0,99091.0,0.00022519]
[1738690902668,1.65243524,99092.0,99091.0,0.00022519]
[1738690902971,1.65143524,99092.0,99091.0,0.00022519]
[1738690903170,1.65243524,99092.0,99091.0,0.00022519]
[1738690903377,1.65143524,99092.0,99091.0,0.00022519]
[1738690903754,1.65243524,99092.0,99091.0,0.00022519]
[1738690903956,1.65143524,99092.0,99091.0,0.00022519]
[1738690904291,1.65243524,99092.0,99091.0,0.00022519]
[1738690904722,1.50006124,99092.0,99091.0,0.00022519]
[1738690904901,1.65143524,99092.0,99091.0,0.00022519]
[1738690905500,0.17879257,99092.0,99091.0,0.00022519]
[1738690906046,1.67979257,99092.0,99091.0,0.00022519]
[1738690906249,0.00106124,99092.0,99091.0,0.00022519]
[1738690906921,6.124e-05,99092.0,99091.0,0.00022519]
[1738690907132,0.00106124,99092.0,99091.0,0.00022519]
[1738690907507,0.15143524,99092.0,99091.0,0.00022519]
[1738690907705,0.15243524,99092.0,99091.0,0.00022519]
[1738690908761,0.00106124,99092.0,99091.0,0.00022519]
[1738690909112,0.15143524,99092.0,99091.0,0.00022519]
[1738690909322,0.15243524,99092.0,99091.0,0.00022519]
[1738690909647,6.124e-05,99092.0,99091.0,0.00022519]
[1738690909851,6.124e-05,99092.0,99091.0,0.00122519]
[1738690910285,6.124e-05,99092.0,99091.0,0.00022519]
[1738690910497,0.00106124,99092.0,99091.0,0.00022519]
[1738690910881,0.15243524,99092.0,99091.0,0.00022519]
[1738690911173,1.82486955,99092.0,99091.0,0.00022519]
[1738690911381,1.7548203,99092.0,99091.0,0.00022519]
[1738690911846,1.8030203,99092.0,99091.0,0.00022519]
[1738690912199,1.8260203,99092.0,99091.0,0.00022519]
[1738690912403,1.8250203,99092.0,99091.0,0.00022519]
[1738690912800,1.83456793,99092.0,99091.0,0.00022519]
[1738690913007,1.85343648,99092.0,99091.0,0.00022519]
[1738690913326,1.85143648,99092.0,99091.0,0.00022519]
[1738690913498,1.85343648,99092.0,99091.0,0.00022519]
[1738690913697,1.85143648,99092.0,99091.0,0.00022519]
[1738690914102,1.85743648,99092.0,99091.0,0.00022519]
[1738690914912,1.85943648,99092.0,99091.0,0.00022519]
[1738690915336,1.85343648,99092.0,99091.0,0.00022519]
[1738690915537,1.90397038,99092.0,99091.0,0.00022519]
[1738690915782,2.23837038,99092.0,99091.0,0.00022519]
[1738690916195,2.18783648,99092.0,99091.0,0.00022519]
[1738690916330,2.18283648,99092.0,99091.0,0.00022519]
[1738690916543,2.26193648,99092.0,99091.0,0.00022519]
[1738690916754,2.26793648,99092.0,99091.0,0.00022519]
[1738690916998,2.25993648,99092.0,99091.0,0.00022519]
[1738690917220,2.3624312,99092.0,99091.0,0.00022519]
[1738690917538,2.3694312,99092.0,99091.0,0.00022519]
[1738690918067,2.36188357,99092.0,99091.0,0.00022519]
[1738690918485,2.35988357,99092.0,99091.0,0.00022519]
[1738690918665,2.35688357,99092.0,99091.0,0.00022519]
[1738690919127,2.37143026,99092.0,99091.0,0.00022519]
[1738690919380,2.36443026,99092.0,99091.0,0.00022519]
[1738690919757,2.37343026,99092.0,99091.0,0.00022519]
[1738690920106,2.37143026,99092.0,99091.0,0.00022519]
[1738690920308,2.37443026,99092.0,99091.0,0.00022519]
[1738690921619,2.52443026,99092.0,99091.0,0.00022519]
[1738690922359,2.55457754,99092.0,99091.0,0.00022519]
[1738690923599,2.45208282,99092.0,99091.0,0.00022519]
[1738690923772,2.46128282,99092.0,99091.0,0.00022519]
[1738690923983,2.42908282,99092.0,99091.0,0.00022519]
[1738690924151,2.39008282,99092.0,99091.0,0.00022519]
[1738690925642,2.41308282,99092.0,99091.0,0.00022519]
[1738690925876,2.51557754,99092.0,99091.0,0.00022519]
[1738690931692,2.41308282,99092.0,99091.0,0.00022519]
[1738690931922,2.40388282,99092.0,99091.0,0.00022519]
[1738690932141,2.15178282,99092.0,99091.0,0.00022519]
[1738690932355,2.16094282,99092.0,99091.0,0.00022519]
[1738690933847,2.15379554,99092.0,99091.0,0.00022519]
[1738690936027,2.13079554,99092.0,99091.0,0.00022519]
[1738690936983,2.12163554,99092.0,99091.0,0.00022519]
[1738690937223,1.86787648,99092.0,99091.0,0.23340119]
[1738690937453,1.86787648,99092.0,99091.0,0.08202519]
[1738690937691,2.01925048,99092.0,99091.0,0.08202519]
[1738690937928,2.00038193,99092.0,99091.0,0.08202519]
[1738690938375,1.84900793,99092.0,99091.0,0.08202519]
[1738690938827,1.84000793,99092.0,99091.0,0.08202519]
[1738690939069,1.82946124,99092.0,99091.0,0.08202519]
[1738690939288,1.83246124,99092.0,99091.0,0.08202519]
[1738690939495,1.50406124,99092.0,99091.0,0.08202519]